bitfinex-derivatives/quotes_ETHF0:USTF0_20241023
["timestamp","ask_amount","ask_price","bid_price","bid_amount"]
[1729716387722,3.2078,2516.4,2516.3,0.39786]
[1729716388042,4.6378,2516.4,2516.3,0.39786]
[1729716388422,3.2078,2516.4,2516.3,0.39786]
[1729716388613,3.2078,2516.4,2516.3,0.52227733]
[1729716389122,3.2078,2516.4,2516.3,0.39786]
[1729716398226,3.11,2516.5,2516.2,0.4247]
[1729716398527,3.11,2516.5,2516.4,0.39785]
[1729716398931,7.37083624,2516.5,2516.4,0.39785]
[1729716399728,4.26083624,2516.5,2516.4,0.39785]
[1729716400122,4.29934405,2516.6,2516.5,0.39783]
[1729716400430,4.35441,2516.7,2516.6,0.39781]
[1729716400728,8.7503019,2516.7,2516.6,0.39781]
[1729716404231,0.39783,2516.6,2516.5,0.39782]
[1729716404624,4.54910222,2516.6,2516.5,0.39782]
[1729716406730,7.65910222,2516.6,2516.5,0.39782]
[1729716409446,7.65910222,2516.6,2516.4,0.39783]
[1729716409447,0.39785,2516.5,2516.4,0.39783]
[1729716409749,4.69726304,2516.5,2516.4,0.39783]
[1729716410286,6.12726304,2516.5,2516.4,0.39783]
[1729716411344,6.12726304,2516.5,2516.4,0.52224532]
[1729716411852,6.12726304,2516.5,2516.4,0.39783]
[1729716412045,6.12726304,2516.5,2516.4,0.52224513]
[1729716413350,6.12724304,2516.5,2516.4,0.52224513]
[1729716414249,5.72941304,2516.5,2516.4,0.52224513]
[1729716415651,4.29941304,2516.5,2516.4,0.52224513]
[1729716415841,5.72941304,2516.5,2516.4,0.52224513]
[1729716416046,1.43,2516.5,2516.4,0.52224513]
[1729716416352,5.86098382,2516.5,2516.4,0.52224513]
[1729716417246,5.86098382,2516.5,2516.4,0.39783]
[1729716423054,6.25881382,2516.5,2516.4,0.39783]
[1729716423354,5.86098382,2516.5,2516.4,0.39783]
[1729716426952,5.86098382,2516.5,2516.4,0.52224185]
[1729716429461,5.86098382,2516.5,2516.4,0.52224123]
[1729716431264,5.86098382,2516.5,2516.4,0.72129896]
[1729716433267,5.86098382,2516.5,2516.4,0.52224114]
[1729716433460,5.86098382,2516.5,2516.4,1.17359897]
[1729716434661,4.43098382,2516.5,2516.4,2.60359897]
[1729716435060,1.43,2516.6,2516.5,0.39783]
[1729716435261,1.43,2516.6,2516.5,1.13309897]
[1729716435468,7.72114622,2516.6,2516.5,0.32346897]
[1729716435666,6.29114622,2516.6,2516.5,0.72129897]
[1729716437264,6.29114622,2516.6,2516.5,0.32346897]
[1729716437667,6.29114622,2516.6,2516.5,0.72129897]
[1729716440479,6.29114622,2516.6,2516.5,0.72130628]
[1729716440680,6.29114622,2516.6,2516.5,0.59689077]
[1729716440877,6.29114622,2516.6,2516.5,0.72130375]
[1729716441477,0.9946,2516.5,2516.1,5.16524857]
[1729716441769,1.43,2516.2,2516.1,0.39788]
[1729716442077,0.39791,2516.1,2516.0,0.39789]
[1729716442273,2.67141,2516.1,2516.0,0.39789]
[1729716442466,6.91238312,2516.1,2516.0,0.39789]
[1729716445377,6.51447312,2516.1,2516.0,0.39789]
[1729716445574,6.91236312,2516.1,2516.0,0.39789]
[1729716445778,6.51447312,2516.1,2516.0,0.39789]
[1729716446080,6.91236312,2516.1,2516.0,0.39789]
[1729716446581,6.51447312,2516.1,2516.0,0.39789]
[1729716448078,5.67097312,2516.1,2516.0,0.39789]
[1729716448278,5.67097312,2516.1,2516.0,0.85119]
[1729716451578,6.06886312,2516.1,2516.0,1.05028021]
[1729716451780,5.67097312,2516.1,2516.0,1.05028021]
[1729716452582,6.06886312,2516.1,2516.0,0.59698021]
[1729716452977,5.67097312,2516.1,2516.0,0.39789]
[1729716453481,6.06886312,2516.1,2516.0,0.52232345]
[1729716453683,5.67097312,2516.1,2516.0,0.39789]
[1729716453879,5.67097312,2516.1,2516.0,0.52232342]
[1729716454310,6.06886312,2516.1,2516.0,0.52232342]
[1729716455382,5.67097312,2516.1,2516.0,0.12443342]
[1729716455581,0.39794,2515.9,2515.8,0.39794]
[1729716455984,6.17766612,2515.9,2515.8,0.39794]
[1729716456184,6.51976612,2515.9,2515.8,0.39794]
[1729716457289,0.39794,2515.8,2515.7,0.87145]
[1729716457495,1.82794,2515.8,2515.7,0.87145]
[1729716457788,6.30875628,2515.8,2515.7,0.87145]
[1729716458693,7.34081628,2515.8,2515.5,0.9123]
[1729716458887,1.82797,2515.6,2515.5,1.76219]
[1729716459287,6.19432142,2515.6,2515.5,1.76219]
[1729716459586,5.79635142,2515.6,2515.5,1.76219]
[1729716460293,6.19432142,2515.6,2515.5,1.76219]
[1729716462487,5.79635142,2515.6,2515.5,1.76219]
[1729716463187,6.19432142,2515.6,2515.5,1.76219]
[1729716464694,5.79635142,2515.6,2515.5,1.76219]
[1729716465092,6.19432142,2515.6,2515.5,1.76219]
[1729716467099,5.79635142,2515.6,2515.5,1.76219]
[1729716467602,5.79635142,2515.6,2515.5,1.88664579]
[1729716468523,5.79635142,2515.6,2515.5,1.76219]
[1729716468792,6.19432142,2515.6,2515.5,1.88664579]
[1729716469199,5.79635142,2515.6,2515.5,1.88664579]
[1729716469391,6.19432142,2515.6,2515.5,1.88664579]
[1729716471603,5.79635142,2515.6,2515.5,1.88664579]
[1729716471996,6.19432142,2515.6,2515.5,1.88664579]
[1729716472300,6.19432142,2515.6,2515.5,1.88664713]
[1729716473304,12.97935142,2515.6,2515.0,3.2078]
[1729716473601,12.97935142,2515.6,2515.2,0.39802]
[1729716473602,0.39803,2515.3,2515.2,0.39802]
[1729716474003,4.84547405,2515.3,2515.2,0.39802]
[1729716474500,6.27547405,2515.3,2515.2,0.39802]
[1729716475207,4.44744405,2515.3,2515.2,0.39802]
[1729716475402,4.44744405,2515.3,2515.2,1.82802]
[1729716475621,1.43,2515.3,2515.2,0.39802]
[1729716475999,5.68068384,2515.3,2515.2,0.39802]
[1729716485404,5.68068384,2515.3,2515.2,0.52249001]
[1729716486310,4.25068384,2515.3,2515.2,0.52249001]
[1729716487821,4.25068384,2515.3,2515.2,6.12763231]
[1729716488013,4.25068384,2515.3,2515.2,0.52249001]
[1729716488014,5.68068384,2515.3,2515.2,0.52249001]
[1729716488211,5.68068384,2515.3,2515.2,0.72163362]
[1729716489107,5.68068384,2515.3,2515.2,4.69763362]
[1729716489406,5.68068384,2515.3,2515.2,0.72163362]
[1729716491513,4.25068384,2515.3,2515.2,0.72163362]
[1729716491713,1.98933,2516.3,2515.6,0.39797]
[1729716491714,3.2078,2515.7,2515.6,0.39797]
[1729716491905,3.2078,2516.2,2516.1,0.39789]
[1729716492110,9.21250554,2516.2,2516.1,0.52236001]
[1729716492305,4.6378,2516.2,2516.1,0.52236001]
[1729716492816,6.00470554,2516.2,2516.1,0.52236001]
[1729716493040,4.57470554,2516.2,2516.1,1.95236001]
[1729716493314,6.00470554,2516.2,2516.1,0.52236001]
[1729716494506,4.57470554,2516.2,2516.1,5.92676001]
[1729716494706,4.6378,2516.5,2516.4,0.39785]
[1729716494922,2.45988384,2516.5,2516.4,1.95232001]
[1729716495119,2.45988384,2516.5,2516.4,2.15136679]
[1729716495320,2.45988384,2516.5,2516.4,1.95232001]
[1729716495615,2.45988384,2516.5,2516.4,3.18925314]
[1729716495916,1.43,2516.9,2516.4,6.76500314]
[1729716496151,1.43,2516.9,2516.8,1.82778]
[1729716496312,5.70258057,2516.9,2516.8,1.95225001]
[1729716496515,4.27258057,2516.9,2516.8,1.95225001]
[1729716496711,5.70258057,2516.9,2516.8,1.95225001]
[1729716496911,1.43,2516.9,2516.8,1.95225001]
[1729716497118,5.9241199,2516.9,2516.8,5.16005001]
[1729716498721,4.4941199,2516.9,2516.8,5.16005001]
[1729716499223,1.43,2516.9,2516.8,5.16005001]
[1729716499431,1.43,2516.9,2516.8,3.72996374]
[1729716499432,5.68315469,2516.9,2516.8,3.72996374]
[1729716499617,1.43,2516.9,2516.8,3.72996374]
[1729716499814,5.68315469,2516.9,2516.8,4.16146374]
[1729716500122,5.68315469,2516.9,2516.8,5.59146374]
[1729716501359,5.68315469,2516.9,2516.8,5.46708]
[1729716502323,5.68315469,2516.9,2516.8,4.03708]
[1729716503025,5.68315469,2516.9,2516.8,3.60558]
[1729716503922,5.68315469,2516.9,2516.8,0.39778]
[1729716508921,4.25315469,2516.9,2516.8,1.82778]
[1729716509324,6.01722949,2517.0,2516.9,0.39777]
[1729716509628,1.43,2517.0,2516.9,0.39777]
[1729716509932,6.01722949,2517.0,2516.9,0.39777]
[1729716522133,9.22502949,2517.0,2516.9,0.39777]
[1729716523441,6.01722949,2517.0,2516.9,0.39777]
[1729716525437,4.58722949,2517.0,2516.9,1.82777]
[1729716525731,3.2078,2517.9,2517.0,0.99438]
[1729716525932,1.43,2517.6,2517.5,1.43]
[1729716526138,4.42709531,2517.7,2517.6,0.39766]
[1729716526335,0.4232,2517.8,2517.6,1.8587]
[1729716526538,0.4232,2517.8,2517.7,0.39764]
[1729716526931,5.85709531,2517.8,2517.7,1.82764]
[1729716527132,4.42709531,2517.8,2517.7,5.79964]
[1729716527333,4.6378,2518.1,2518.0,0.39759]
[1729716527531,4.6378,2518.1,2518.0,1.82759]
[1729716527740,9.05848374,2518.1,2518.0,1.82759]
[1729716528440,9.05848374,2518.1,2518.0,0.39759]
[1729716531241,5.85068374,2518.1,2518.0,0.39759]
[1729716533535,4.81826374,2518.1,2518.0,0.39759]
[1729716533850,5.85068374,2518.1,2518.0,0.39759]
[1729716534041,4.42068374,2518.1,2518.0,1.82759]
[1729716536460,4.42068374,2518.1,2518.0,2.93459]
[1729716537235,4.42068374,2518.1,2518.0,8.33579]
[1729716537445,3.2078,2518.2,2518.1,0.39758]
[1729716537642,3.2078,2518.2,2518.1,2.28378]
[1729716537938,3.2078,2518.2,2518.1,2.74798]
[1729716539346,1.82751,2518.6,2518.5,0.39751]
[1729716539540,1.82751,2518.6,2518.5,1.82751]
[1729716539744,5.97777041,2518.6,2518.5,1.82751]
[1729716540144,5.58026041,2518.6,2518.5,1.82751]
[1729716540350,4.15026041,2518.6,2518.5,1.82751]
[1729716541042,1.43,2519.0,2518.9,0.39744]
[1729716541238,1.43,2519.0,2518.9,1.43]
[1729716541443,1.43,2519.0,2518.9,1.82745]
[1729716542239,1.43,2519.0,2518.9,0.39745]
[1729716542240,0.39743,2519.0,2518.9,0.39745]
[1729716543243,0.39743,2519.0,2518.6,0.9266]
[1729716543244,3.9696,2519.0,2518.6,0.9266]
[1729716543444,3.9696,2519.0,2518.3,0.4687]
[1729716543445,0.39753,2518.4,2518.3,2.0325]
[1729716543646,0.39753,2518.4,2518.3,0.4687]
[1729716543843,0.39753,2518.4,2518.0,1.77379]
[1729716543844,0.39758,2518.1,2518.0,1.77379]
[1729716544142,0.39758,2518.1,2518.0,2.0164]
[1729716544358,0.4387,2518.3,2518.0,0.9144]
[1729716544551,0.39758,2518.1,2518.0,0.9144]
[1729716544742,4.21235329,2518.1,2518.0,0.9144]
[1729716544943,4.60992329,2518.2,2518.1,0.39758]
[1729716545244,0.39758,2518.1,2518.0,0.4565]
[1729716545554,4.65084905,2518.1,2518.0,0.4565]
[1729716545742,4.65084905,2518.1,2518.0,0.85409]
[1729716546154,4.25326905,2518.1,2518.0,0.85409]
[1729716546337,0.39759,2518.0,2517.9,3.2078]
[1729716546743,4.88639544,2518.0,2517.9,3.2078]
[1729716547047,4.88639544,2518.0,2517.9,0.39761]
[1729716549443,4.48880544,2518.0,2517.7,1.5599]
[1729716549648,0.39761,2517.9,2517.8,0.39762]
[1729716549849,0.4517,2517.9,2517.8,0.39762]
[1729716551862,0.84931,2517.9,2517.8,0.39762]
[1729716552248,0.84931,2517.9,2517.7,1.95753]
[1729716552249,0.4517,2517.9,2517.7,1.95753]
[1729716552461,0.39762,2517.8,2517.7,0.85553]
[1729716552751,5.00050807,2517.9,2517.7,0.4579]
[1729716552951,4.60288807,2517.9,2517.8,0.39762]
[1729716553851,4.60288807,2517.9,2517.7,0.4579]
[1729716554061,0.39762,2517.8,2517.7,0.39763]
[1729716554747,5.00050807,2517.9,2517.8,0.39762]
[1729716558155,0.39764,2517.7,2517.6,0.4517]
[1729716558355,4.60288807,2517.9,2517.3,3.2078]
[1729716558551,0.39767,2517.6,2517.5,0.39766]
[1729716558955,0.39769,2517.5,2517.4,0.39768]
[1729716559146,0.4254,2517.5,2517.4,0.39769]
[1729716559352,5.02674944,2517.5,2517.4,0.39769]
[1729716559557,4.62907944,2517.5,2517.4,0.39769]
[1729716559765,5.02674944,2517.5,2517.4,0.39769]
[1729716561251,0.39769,2517.4,2517.3,3.60549]
[1729716561558,4.97161159,2517.4,2517.3,3.60549]
[1729716562650,4.97161159,2517.4,2517.3,0.39769]
[1729716566455,4.57392159,2517.4,2517.3,0.39769]
[1729716566658,4.57392159,2517.4,2517.3,3.49769]
[1729716567178,4.97161159,2517.4,2517.3,3.49769]
[1729716568361,4.97161159,2517.4,2517.3,1.82769]
[1729716572561,4.57392159,2517.4,2517.3,1.82769]
[1729716573964,4.97161159,2517.4,2517.3,1.82769]
[1729716574163,3.2078,2517.5,2517.3,6.8328]
[1729716574376,0.3976,2518.0,2517.9,0.39759]
[1729716574568,0.3976,2518.0,2517.9,1.82759]
[1729716574768,4.3495942,2518.0,2517.9,1.82759]
[1729716575369,4.7471842,2518.0,2517.9,1.82759]
[1729716575868,4.3495942,2518.0,2517.9,1.82759]
[1729716578274,4.7471842,2518.0,2517.9,1.82759]
[1729716578574,4.8140942,2518.0,2517.9,1.82759]
[1729716578868,5.2116842,2518.0,2517.9,1.82759]
[1729716582363,8.4194842,2518.0,2517.9,1.82759]
[1729716584177,8.0218942,2518.0,2517.9,1.82759]
[1729716584471,8.4194842,2518.0,2517.9,1.82759]
[1729716584872,9.4518942,2518.0,2517.4,4.202]
[1729716585069,0.39764,2517.8,2517.7,1.82762]
[1729716589475,0.85592,2517.9,2517.8,0.39762]
[1729716589672,0.4583,2517.9,2517.8,0.39762]
[1729716589875,5.03226327,2517.9,2517.8,0.39762]
[1729716590377,5.03226327,2517.9,2517.8,0.52196611]
[1729716590875,5.03226327,2517.9,2517.8,0.39762]
[1729716591281,5.03226327,2517.9,2517.8,0.52196646]
[1729716592471,5.03226327,2517.9,2517.8,0.39762]
[1729716593080,5.03226327,2517.9,2517.8,1.82762]
[1729716596477,4.63465327,2517.9,2517.8,1.95196908]
[1729716596681,4.17635327,2517.9,2517.8,1.95196908]
[1729716597677,4.17635327,2517.9,2517.8,2.86846908]
[1729716602475,4.17635327,2517.9,2517.8,2.74412]
[1729716602677,4.17635327,2517.9,2517.8,2.86846484]
[1729716602885,4.17635327,2517.9,2517.8,2.74412]
[1729716603086,4.17635327,2517.9,2517.8,2.8684648]
[1729716609693,4.17635327,2517.9,2517.8,2.86846961]
[1729716613203,4.17635327,2517.9,2517.8,2.86846806]
[1729716616708,4.17635327,2517.9,2517.8,2.4113693]
[1729716616909,5.06025327,2517.9,2517.8,1.9519693]
[1729716618302,5.06025327,2517.9,2517.8,2.15092821]
[1729716620309,5.06025327,2517.9,2517.8,2.15091774]
[1729716623099,5.45786327,2517.9,2517.8,2.15091774]
[1729716623806,5.06025327,2517.9,2517.8,2.15091774]
[1729716625410,5.45786327,2517.9,2517.8,2.15091774]
[1729716625611,5.06025327,2517.9,2517.8,2.15091774]
[1729716627407,5.06025327,2517.9,2517.8,1.95196528]
[1729716627615,5.06025327,2517.9,2517.8,2.15092107]
[1729716628201,5.45786327,2517.9,2517.8,2.15092107]
[1729716628602,5.06025327,2517.9,2517.8,2.15092107]
[1729716630012,5.45786327,2517.9,2517.8,2.15092107]
[1729716630708,5.06025327,2517.9,2517.8,1.95196656]
[1729716630916,5.06025327,2517.9,2517.8,2.15092157]
[1729716634321,4.17635327,2517.9,2517.8,2.15092157]
[1729716634614,4.17635327,2517.9,2517.8,0.39762]
[1729716634817,9.97596327,2517.9,2517.8,0.32330372]
[1729716635014,0.39769,2517.4,2517.3,1.43]
[1729716635214,0.39769,2517.4,2517.3,1.8277]
[1729716635711,1.36289,2517.4,2517.3,1.8277]
[1729716637122,0.9652,2517.4,2517.3,1.8277]
[1729716637715,4.57069,2517.4,2517.3,1.8277]
[1729716638116,3.60549,2517.4,2517.3,1.8277]
[1729716638324,3.2078,2517.4,2517.3,1.8277]
[1729716639610,3.60549,2517.4,2517.3,1.8277]
[1729716640515,3.60549,2517.4,2517.1,1.47333]
[1729716640516,0.39772,2517.2,2517.1,0.87673]
[1729716640710,6.39711,2517.2,2516.7,2.46577295]
[1729716640909,1.43,2516.9,2516.7,1.9241]
[1729716641114,0.4739,2516.8,2516.7,0.8919]
[1729716641311,4.79480995,2516.8,2516.7,0.8919]
[1729716641734,4.79480995,2516.8,2516.7,2.3219]
[1729716644222,4.32090995,2516.8,2516.7,2.3219]
[1729716644728,4.56669811,2516.9,2516.8,0.39778]
[1729716644917,0.4793,2516.9,2516.8,1.82778]
[1729716645224,5.04599811,2516.9,2516.8,1.82778]
[1729716647724,8.25379811,2516.9,2516.8,1.82778]
[1729716648226,5.04599811,2516.9,2516.8,1.82778]
[1729716648414,8.25379811,2516.9,2516.8,1.82778]
[1729716648818,5.04599811,2516.9,2516.8,1.82778]
[1729716649220,8.25379811,2516.9,2516.8,1.43]
[1729716649422,9.25049811,2516.9,2516.8,1.82778]
[1729716649617,9.64826811,2516.9,2516.8,1.82778]
[1729716651032,9.25049811,2516.9,2516.8,1.82778]
[1729716651235,9.64826811,2516.9,2516.8,1.82778]
[1729716652231,9.64826811,2516.9,2516.8,1.43]
[1729716652934,9.64826811,2516.9,2516.8,1.82778]
[1729716653136,9.64826811,2516.9,2516.8,1.43]
[1729716653347,14.65409811,2516.9,2516.4,1.43]
[1729716653641,0.39782,2516.6,2516.5,0.39782]
[1729716653933,6.42103485,2516.6,2516.5,1.82782]
[1729716654129,6.87912485,2516.6,2516.5,1.43]
[1729716654729,0.39785,2516.5,2516.4,1.43]
[1729716654943,2.75075,2516.5,2516.4,1.43]
[1729716655131,7.25789116,2516.5,2516.4,1.43]
[1729716655327,11.82821116,2516.5,2516.1,1.43]
[1729716655534,11.82821116,2516.5,2515.7,3.2078]
[1729716655535,0.39788,2516.1,2516.0,1.43]
[1729716655732,0.39788,2516.1,2515.9,2.26541]
[1729716655733,0.3979,2516.0,2515.9,2.26541]
[1729716655935,2.7552,2516.0,2515.9,0.56193459]
[1729716656140,2.7552,2516.0,2515.9,0.56193853]
[1729716656141,7.06044142,2516.0,2515.9,0.56193853]
[1729716656544,7.06044142,2516.0,2515.9,0.4375]
[1729716656845,7.06044142,2516.0,2515.9,1.99193733]
[1729716657048,6.66254142,2516.0,2515.8,1.43]
[1729716657340,1.82792,2515.9,2515.8,1.43]
[1729716657541,0.39793,2515.8,2515.7,2.29205]
[1729716657841,6.02201496,2515.8,2515.7,2.29205]
[1729716658438,4.19408496,2515.8,2515.7,2.29205]
[1729716659735,4.19408496,2515.8,2515.7,7.69725]
[1729716659936,3.2078,2516.0,2515.9,0.39792]
[1729716660157,3.2078,2516.0,2515.9,3.25792]
[1729716660343,5.50895,2516.4,2516.3,0.39785]
[1729716660535,3.6811,2516.4,2516.3,1.82785]
[1729716660737,7.9746925,2516.4,2516.3,1.82785]
[1729716660943,7.5013925,2516.4,2516.3,1.82785]
[1729716662242,7.5013925,2516.4,2516.3,0.39785]
[1729716662637,7.5013925,2516.4,2516.3,0.83955]
[1729716662843,7.8992325,2516.4,2516.3,0.39785]
[1729716663043,7.5013925,2516.4,2516.1,0.4334]
[1729716663272,0.39787,2516.2,2516.1,0.39788]
[1729716663442,0.39788,2516.1,2516.0,0.39789]
[1729716663637,4.62184063,2516.2,2516.1,0.39788]
[1729716663945,0.39788,2516.2,2516.1,0.39788]
[1729716664149,4.62184063,2516.2,2516.1,0.39788]
[1729716664937,4.22396063,2516.2,2516.1,0.39788]
[1729716673760,3.2078,2516.4,2516.1,7.0844]
[1729716673955,3.2078,2516.4,2516.3,0.39785]
[1729716675047,0.4542,2516.6,2516.5,0.39782]
[1729716675454,4.97314086,2516.6,2516.5,0.39782]
[1729716684265,6.80095086,2516.6,2516.5,0.39782]
[1729716685161,6.40314086,2516.6,2516.4,1.43]
[1729716685457,0.39782,2516.5,2516.4,1.82783]
[1729716685869,4.88654724,2516.5,2516.4,1.82783]
[1729716686188,4.88654724,2516.5,2516.4,1.95224531]
[1729716687965,4.48872724,2516.5,2516.4,1.95224531]
[1729716691066,4.48872724,2516.5,2516.4,1.95224172]
[1729716691565,4.48872724,2516.5,2516.4,1.95224171]
[1729716696963,4.88654724,2516.5,2516.4,1.95224171]
[1729716700472,4.48872724,2516.5,2516.4,1.95224171]
[1729716700972,4.88654724,2516.5,2516.4,1.95224171]
[1729716701369,4.48872724,2516.5,2516.4,1.95224171]
[1729716701677,4.48872724,2516.5,2516.4,1.82783]
[1729716701969,4.48872724,2516.5,2516.4,1.9522424]
[1729716704872,4.88654724,2516.5,2516.4,1.9522424]
[1729716705373,4.48872724,2516.5,2516.4,1.95224339]
[1729716705571,4.88654724,2516.5,2516.4,1.82783]
[1729716705767,4.48872724,2516.5,2516.4,1.95224328]
[1729716706567,4.88654724,2516.5,2516.4,1.95224328]
[1729716706878,4.48872724,2516.5,2516.4,1.95224328]
[1729716707669,4.48872724,2516.5,2516.4,1.82783]
[1729716707877,4.48872724,2516.5,2516.4,1.95224413]
[1729716708878,4.88654724,2516.5,2516.4,1.95224413]
[1729716709072,4.48872724,2516.5,2516.4,1.95224413]
[1729716711190,4.48872724,2516.5,2516.4,2.15130533]
[1729716711776,4.48872724,2516.5,2516.4,1.95224413]
[1729716712072,4.48872724,2516.5,2516.4,2.15130622]
[1729716716185,4.48872724,2516.5,2516.4,2.1513237]
[1729716719685,4.48872724,2516.5,2516.4,3.18707738]
[1729716721479,4.48872724,2516.5,2516.4,3.18706857]
[1729716722469,4.48872724,2516.5,2516.4,3.18706874]
[1729716722980,3.2078,2516.9,2516.6,1.98902]
[1729716723181,3.2078,2517.2,2517.1,0.39773]
[1729716723381,3.2078,2517.2,2517.1,2.15119579]
[1729716723683,4.56838248,2517.2,2517.1,2.15119579]
[1729716725883,4.56838248,2517.2,2517.1,2.15110323]
[1729716726285,4.56838248,2517.2,2517.1,1.95210432]
[1729716729284,4.56838248,2517.2,2517.1,1.95210468]
[1729716732782,4.56838248,2517.2,2517.1,1.82773]
[1729716732979,4.56838248,2517.2,2517.1,1.9521057]
[1729716733180,4.96609248,2517.2,2517.1,1.82773]
[1729716733988,4.56838248,2517.2,2517.1,1.82773]
[1729716734384,4.1124,2517.5,2517.4,0.39768]
[1729716734591,3.638,2517.5,2517.4,1.82768]
[1729716734790,3.6573,2517.5,2517.4,1.82768]
[1729716737992,4.05496,2517.5,2517.4,1.82768]
[1729716738595,4.05496,2517.5,2517.1,2.35021]
[1729716738596,0.3977,2517.4,2517.3,0.39769]
[1729716738791,0.3977,2517.4,2517.3,1.82769]
[1729716738991,1.43,2517.4,2517.2,1.43]
[1729716739183,2.71751,2517.3,2516.9,1.085]
[1729716739383,0.39776,2517.0,2516.9,1.48274]
[1729716739590,0.39773,2517.1,2517.0,0.39773]
[1729716739800,0.39773,2517.1,2516.9,1.085]
[1729716739801,0.463,2517.0,2516.9,1.48276]
[1729716740092,4.65775665,2517.0,2516.9,1.48276]
[1729716740296,0.463,2517.0,2516.9,1.48276]
[1729716740887,3.60547,2517.5,2517.4,0.39768]
[1729716741094,3.60547,2517.5,2517.4,1.82768]
[1729716741095,4.06187,2517.5,2517.4,1.82768]
[1729716741291,7.83344979,2517.5,2517.4,1.82768]
[1729716744192,8.23110979,2517.5,2517.4,1.82768]
[1729716746488,8.23110979,2517.5,2517.2,0.99427]
[1729716746489,0.39771,2517.3,2517.2,0.3977]
[1729716746696,1.82771,2517.3,2517.2,1.8277]
[1729716746895,6.36315675,2517.3,2517.2,1.8277]
[1729716747091,6.78865675,2517.3,2517.2,1.8277]
[1729716747795,6.39094675,2517.3,2517.1,0.39772]
[1729716748095,0.39771,2517.2,2517.1,0.39772]
[1729716748501,4.62791307,2517.2,2517.1,1.82772]
[1729716751394,4.23020307,2517.2,2517.1,1.82772]
[1729716751602,4.62791307,2517.2,2517.1,1.82772]
[1729716752198,4.23020307,2517.2,2517.1,1.82772]
[1729716756295,4.23020307,2517.2,2517.1,2.26702]
[1729716758088,4.23020307,2517.2,2517.1,2.73992]
[1729716761400,4.23020307,2517.2,2517.1,2.86429379]
[1729716764605,4.23020307,2517.2,2517.1,6.83709379]
[1729716764795,3.2078,2517.3,2517.2,0.39771]
[1729716764997,3.2078,2517.3,2517.2,1.95208379]
[1729716765190,3.2078,2517.3,2517.2,5.92488379]
[1729716765592,3.2078,2517.3,2517.2,7.16050303]
[1729716768206,3.2078,2517.3,2517.2,6.12387679]
[1729716768700,4.1048,2517.5,2517.4,0.39768]
[1729716768896,4.1048,2517.5,2517.4,1.95205379]
[1729716769099,8.46191605,2517.5,2517.4,1.95205379]
[1729716769300,5.25411605,2517.5,2517.4,1.95205379]
[1729716769610,8.85957605,2517.5,2517.4,1.95205379]
[1729716771704,5.65177605,2517.5,2517.4,1.95205379]
[1729716771904,8.85957605,2517.5,2517.4,1.95205379]
[1729716774006,7.56491605,2517.5,2517.4,1.95205379]
[1729716774210,3.2078,2517.8,2517.4,7.55305103]
[1729716774505,3.60542,2517.8,2517.7,1.82761]
[1729716774709,3.60542,2517.8,2517.7,1.95198379]
[1729716774901,7.72096862,2517.8,2517.7,1.95198379]
[1729716775696,8.11857862,2517.8,2517.7,1.95198379]
[1729716775896,7.72096862,2517.8,2517.7,1.95198379]
[1729716779002,7.72096862,2517.8,2517.7,1.95196478]
[1729716779310,4.51316862,2517.8,2517.7,1.95196478]
[1729716779514,7.72096862,2517.8,2517.7,1.95196478]
[1729716780202,8.11857862,2517.8,2517.7,1.95196478]
[1729716780507,7.72096862,2517.8,2517.7,1.95196478]
[1729716782202,4.51316862,2517.8,2517.7,1.95196478]
[1729716782603,7.72096862,2517.8,2517.7,1.95196478]
[1729716784706,4.51316862,2517.8,2517.7,1.95196478]
[1729716785601,7.72096862,2517.8,2517.7,1.95196478]
[1729716787710,3.2078,2517.8,2517.7,5.79961]
[1729716788016,3.2078,2517.8,2517.7,6.26641]
[1729716789316,3.2078,2517.8,2517.7,6.39075496]
[1729716792719,3.2078,2517.8,2517.7,6.26641]
[1729716795121,0.4413,2517.9,2517.7,5.8688]
[1729716795321,0.4413,2517.9,2517.8,1.82761]
[1729716800725,0.4413,2517.9,2517.8,1.95195543]
[1729716803846,0.4413,2517.9,2517.8,1.82761]
[1729716804122,0.4413,2517.9,2517.8,1.95195556]
[1729716806824,0.8389,2517.9,2517.8,0.52195556]
[1729716807023,5.1207279,2517.9,2517.8,1.55434556]
[1729716807322,5.1207279,2517.9,2517.8,1.5543497]
[1729716807635,0.99408,2517.7,2517.3,1.43]
[1729716807927,0.39768,2517.4,2517.3,1.43]
[1729716808428,5.33530089,2517.4,2517.3,1.43]
[1729716810032,8.54310089,2517.4,2517.3,1.43]
[1729716810929,13.54822089,2517.4,2516.7,5.60877307]
[1729716811127,5.03552,2517.1,2517.0,1.82774]
[1729716811327,3.60552,2517.1,2517.0,1.82774]
[1729716811622,12.01351978,2517.1,2517.0,1.82774]
[1729716811852,12.89961978,2517.1,2517.0,1.82774]
[1729716812126,8.92681978,2517.1,2517.0,1.82774]
[1729716812817,12.89961978,2517.1,2517.0,1.82774]
[1729716813423,8.92681978,2517.1,2517.0,1.82774]
[1729716813730,12.89961978,2517.1,2517.0,1.82774]
[1729716813935,8.92681978,2517.1,2517.0,1.82774]
[1729716814225,12.89961978,2517.1,2517.0,1.82774]
[1729716814427,9.69181978,2517.1,2517.0,1.82774]
[1729716814628,5.71901978,2517.1,2517.0,1.82774]
[1729716818146,5.32129978,2517.1,2516.7,0.4364]
[1729716818335,5.71903978,2517.1,2517.0,1.43]
[1729716819230,10.72409978,2517.1,2516.6,3.2078]
[1729716819439,0.3978,2516.6,2516.5,1.43]
[1729716819627,0.39782,2516.5,2516.3,1.43]
[1729716819936,2.70612,2516.5,2516.4,0.39784]
[1729716820130,6.2819,2516.5,2515.8,2.03100307]
[1729716820433,6.2819,2516.5,2516.4,0.39784]
[1729716820434,5.56639879,2516.5,2516.4,0.39784]
[1729716820630,5.56639879,2516.5,2516.4,1.82784]
[1729716822037,4.29026879,2516.5,2516.4,7.23144]
[1729716822232,3.2078,2516.6,2516.4,7.23144]
[1729716822233,3.2078,2516.6,2516.5,0.39782]
[1729716822426,3.60554,2517.1,2517.0,0.39774]
[1729716822630,4.05624,2517.1,2517.0,1.82774]
[1729716822832,12.51629116,2517.1,2517.0,1.82774]
[1729716823033,13.94629116,2517.1,2517.0,1.82774]